fUSD/lending_fUSD_20240513
["ID","MTS","AMOUNT","RATE_DAILY","PERIOD"]
[326911638,1715563839639,-390.00145948,0.00012876,2]
[326911639,1715563839649,-500.0,0.00012876,2]
[326911640,1715563839659,-500.0,0.00012876,2]
[326911641,1715563839669,-500.0,0.00012876,2]
[326911642,1715563839679,-500.0,0.00012876,2]
[326911643,1715563839689,-500.0,0.00012876,2]
[326911644,1715563839699,-540.92,0.00012876,2]
[326911645,1715563839708,-540.92,0.00012876,2]
[326911646,1715563839718,-364.09927495,0.00012876,2]
[326911647,1715563839728,-819.66,0.00012876,2]
[326911648,1715563839738,-819.66,0.00012876,2]
[326911649,1715563839747,-3097.42,0.00012876,2]
[326911650,1715563839757,-3097.42,0.00012876,2]
[326911651,1715563839767,-3097.42,0.00012876,2]
[326911652,1715563839777,-3097.42,0.00012876,2]
[326911653,1715563839790,-3097.42,0.00012876,2]
[326911654,1715563839799,-3097.42,0.00012876,2]
[326911655,1715563839809,-199.2134489,0.00012876,2]
[326911656,1715563839818,-165.49608365,0.00012876,2]
[326911657,1715563839828,-209.48093928,0.00012876,2]
[326911658,1715563839838,-299.90938836,0.00012876,2]
[326911659,1715563839847,-500.0,0.00012876,2]
[326911660,1715563839857,-345.75345605,0.00012876,2]
[326911661,1715563839866,-396.46639881,0.00012876,2]
[326911662,1715563839876,-231.10212527,0.00012876,2]
[326911663,1715563839886,-49735.60480172,0.00012876,2]
[326911664,1715563839900,-858.60451901,0.00012876,2]
[326911665,1715563839928,-1636.7040872,0.00012876,2]
[326911666,1715563840244,-266.24634995,0.00012596,2]
[326911667,1715563840256,-737.59159714,0.00012596,2]
[326911668,1715563840268,-459.16205291,0.00012596,2]
[326911669,1715563840278,-654.07492727,0.00012876,2]
[326911670,1715563840291,-4896.92,0.00012876,2]
[326911671,1715563840302,-45009.6069027,0.00012876,2]
[326911672,1715563840537,-1272.84897139,0.00012876,2]
[326911673,1715563840550,-311945.41579071,0.00012876,2]
[326911674,1715563840560,-481.38612597,0.00012876,2]
[326911675,1715563840570,-1000.0,0.00012876,2]
[326911676,1715563840580,-702.70175993,0.00012877,2]
[326911677,1715563840589,-500.0,0.00012877,2]
[326911678,1715563840599,-540.92,0.00012877,2]
[326911679,1715563840609,-819.66,0.00012877,2]
[326911680,1715563840619,-3097.42,0.00012877,2]
[326911681,1715563840628,-49522.19387939,0.00012878,2]
[326911682,1715563840639,-252.43701998,0.00012878,2]
[326911683,1715563840650,-130279.59795361,0.00012878,2]
[326911684,1715563840661,-696.2,0.00012878,2]
[326911685,1715563840673,-7058.3,0.00012878,2]
[326911686,1715563840725,-662.47809905,0.00012878,2]
[326911687,1715563840736,-922.8938064,0.00012878,2]
[326911688,1715563840747,-854.2141538,0.00012878,2]
[326911689,1715563840758,-659.94979241,0.00012878,2]
[326911690,1715563840774,-5299.5959166,0.00012878,2]
[326911720,1715563843178,-150.0,0.00012876,2]
[326911722,1715563843187,-954.6360013,0.00012878,2]
[326911725,1715563843199,-1883.65102,0.00012878,2]
[326911727,1715563843210,-654.33135849,0.00012878,2]
[326911728,1715563843220,-35333.77735331,0.00012878,2]
[326911729,1715563843232,-9965.74364566,0.00012878,2]
[326911730,1715563843241,-1000.0,0.0001288,2]
[326911731,1715563843250,-10000.0,0.0001288,2]
[326911732,1715563843260,-177.8251654,0.0001288,2]
[326911733,1715563843269,-150.0,0.0001288,2]
[326911734,1715563843278,-176.12199233,0.0001288,2]
[326911735,1715563843287,-177.10224627,0.0001288,2]
[326911736,1715563843296,-421.72159556,0.0001288,2]
[326911737,1715563843305,-5015.03246518,0.0001288,2]
[326911738,1715563843314,-177.03372317,0.0001288,2]
[326911739,1715563843323,-150.0,0.00012885,2]
[326911740,1715563843332,-150.0,0.00012894,2]
[326911741,1715563843341,-150.0,0.00012897,2]
[326911742,1715563843350,-8848.24858068,0.000129,2]
[326911743,1715563843359,-249.32105602,0.000129,2]
[326911744,1715563843368,-249.321056,0.000129,2]
[326911745,1715563843377,-249.321056,0.000129,2]
[326911746,1715563843386,-249.321056,0.000129,2]
[326911747,1715563843395,-249.321056,0.000129,2]
[326911748,1715563843404,-249.321056,0.000129,2]
[326911749,1715563843414,-249.321056,0.000129,2]
[326911750,1715563843423,-249.321056,0.000129,2]
[326911751,1715563843432,-150.0,0.00012916,2]
[326911752,1715563843442,-1500.0,0.00012916,2]
[326911753,1715563843452,-150.0,0.00012921,2]
[326911754,1715563843461,-150.0,0.00012922,2]
[326911755,1715563843472,-150.0,0.00012929,2]
[326911756,1715563843484,-167.75,0.00012933,2]
[326911757,1715563843492,-1500.0,0.00012934,2]
[326911758,1715563843502,-150.0,0.00012949,2]
[326911759,1715563843512,-1500.0,0.00012957,2]
[326911760,1715563843524,-160.0,0.00012961,2]
[326911761,1715563843533,-150.0,0.00012965,2]
[326911762,1715563843543,-150.0,0.00012966,2]
[326911763,1715563843554,-160.0,0.0001297,2]
[326911764,1715563843564,-500.0,0.0001297,2]
[326911765,1715563843573,-152.65,0.0001297,2]
[326911766,1715563843583,-152.65,0.0001297,2]
[326911767,1715563843592,-152.65,0.0001297,2]
[326911768,1715563843603,-152.65,0.0001297,2]
[326911769,1715563843613,-152.65,0.0001297,2]
[326911770,1715563843622,-152.65,0.0001297,2]
[326911771,1715563843631,-152.65,0.0001297,2]
[326911772,1715563843642,-14340.8943323,0.00012971,2]
[326911773,1715563843651,-10959.5872922,0.00012971,2]
[326911774,1715563843661,-7578.2802521,0.00012971,2]
[326911775,1715563843669,-4196.973212,0.00012971,2]
[326911776,1715563843678,-815.6661719,0.00012971,2]
[326911777,1715563843687,-3137.9316961,0.00012971,2]
[326911778,1715563843696,-2398.0677594,0.00012971,2]
[326911779,1715563843705,-1658.2038228,0.00012971,2]
[326911780,1715563843714,-918.3398862,0.00012971,2]
[326911781,1715563843723,-178.4759496,0.00012971,2]
[326911782,1715563843732,-19715.7604789,0.00012971,2]
[326911783,1715563843741,-15067.1633857,0.00012971,2]
[326911784,1715563843750,-10418.5662924,0.00012971,2]
[326911785,1715563843759,-5769.9691991,0.00012971,2]
[326911786,1715563843768,-1121.3721058,0.00012971,2]
[326911787,1715563843777,-11741.4764809,0.00012971,2]
[326911788,1715563843789,-8974.6322248,0.00012971,2]
[326911789,1715563843798,-6207.7879687,0.00012971,2]
[326911790,1715563843808,-3440.9437126,0.00012971,2]
[326911791,1715563843817,-674.0994565,0.00012971,2]
[326911792,1715563843827,-2690.5327567,0.00012971,2]
[326911793,1715563844020,-2056.5166587,0.00012971,2]
[326911794,1715563844031,-1422.5005606,0.00012971,2]
[326911795,1715563844042,-788.4844626,0.00012971,2]
[326911796,1715563844051,-154.4683645,0.00012971,2]
[326911797,1715563844060,-363.6312388,0.00012971,2]
[326911798,1715563844069,-363.6312388,0.00012971,2]
[326911799,1715563844079,-363.6312388,0.00012971,2]
[326911800,1715563844088,-363.6312388,0.00012971,2]
[326911801,1715563844098,-363.6312388,0.00012971,2]
[326911802,1715563844106,-3097.42,0.00012975,2]
[326911803,1715563844115,-4017.5706111,0.00012976,2]
[326911804,1715563844124,-358.32625153,0.00012976,2]
[326911805,1715563844133,-17722.2013724,0.00012976,2]
[326911806,1715563844143,-3877.7956327,0.00012976,2]
[326911807,1715563844152,-227.47809229,0.00012977,2]
[326911808,1715563844161,-24364.3575722,0.00012977,2]
[326911809,1715563844170,-14508.320737,0.00012977,2]
[326911810,1715563844179,-3324.5488548,0.00012977,2]
[326911811,1715563844188,-314.85982391,0.00012977,2]
[326911812,1715563844198,-363.6312388,0.00012977,2]
[326911813,1715563844207,-3086.71814515,0.00012978,2]
[326911814,1715563844216,-1225.0,0.00012978,2]
[326911815,1715563844225,-155.0,0.00012978,2]
[326911816,1715563844234,-1997.08236472,0.00012978,2]
[326911817,1715563844243,-1037.98964315,0.00012979,3]
[326911818,1715563844253,-1037.98964315,0.00012979,3]
[326911819,1715563844262,-207.84030149,0.00012979,2]
[326911820,1715563844271,-500.0,0.00012979,2]
[326911821,1715563844281,-500.0,0.00012979,2]
[326911822,1715563844292,-500.0,0.00012979,2]
[326911823,1715563844301,-540.92,0.00012979,2]
[326911824,1715563844310,-540.92,0.00012979,2]
[326911825,1715563844320,-540.92,0.00012979,2]
[326911826,1715563844329,-540.92,0.00012979,2]
[326911827,1715563844338,-540.92,0.00012979,2]
[326911828,1715563844347,-540.92,0.00012979,2]
[326911829,1715563844357,-540.92,0.00012979,2]
[326911830,1715563844366,-540.92,0.00012979,2]
[326911831,1715563844375,-540.92,0.00012979,2]
[326911832,1715563844384,-540.92,0.00012979,2]
[326911833,1715563844393,-540.92,0.00012979,2]
[326911834,1715563844403,-540.92,0.00012979,2]
[326911835,1715563844413,-540.92,0.00012979,2]
[326911836,1715563844422,-540.92,0.00012979,2]
[326911837,1715563844431,-540.92,0.00012979,2]
[326911838,1715563844442,-540.92,0.00012979,2]
[326911839,1715563844451,-540.92,0.00012979,2]
[326911840,1715563844461,-540.92,0.00012979,2]
[326911841,1715563844471,-540.92,0.00012979,2]
[326911842,1715563844483,-540.92,0.00012979,2]
[326911843,1715563844493,-540.94861238,0.00012979,2]
[326911844,1715563844502,-819.66,0.00012979,2]
[326911845,1715563844511,-819.66,0.00012979,2]
[326911846,1715563844521,-819.66,0.00012979,2]
[326911847,1715563844530,-819.66,0.00012979,2]
[326911848,1715563844540,-819.66,0.00012979,2]
[326911849,1715563844549,-819.66,0.00012979,2]
[326911850,1715563844557,-819.66,0.00012979,2]
[326911851,1715563844567,-819.66,0.00012979,2]
[326911852,1715563844576,-819.66,0.00012979,2]
[326911853,1715563844585,-819.66,0.00012979,2]
[326911854,1715563844595,-819.66,0.00012979,2]
[326911855,1715563844604,-819.66,0.00012979,2]
[326911856,1715563844613,-819.66,0.00012979,2]
[326911857,1715563844622,-819.66,0.00012979,2]
[326911858,1715563844631,-819.66,0.00012979,2]
[326911859,1715563844641,-819.66,0.00012979,2]
[326911860,1715563844650,-819.66,0.00012979,2]
[326911861,1715563844659,-819.66,0.00012979,2]
[326911862,1715563844669,-819.66,0.00012979,2]
[326911863,1715563844678,-819.66,0.00012979,2]
[326911864,1715563844688,-819.6942929,0.00012979,2]
[326911865,1715563844697,-3097.42,0.00012979,2]
[326911866,1715563844707,-3097.42,0.00012979,2]
[326911867,1715563844716,-3097.42,0.00012979,2]
[326911868,1715563844726,-3097.42,0.00012979,2]
[326911869,1715563844735,-3097.42,0.00012979,2]
[326911870,1715563844745,-3097.42,0.00012979,2]
[326911871,1715563844755,-3097.42,0.00012979,2]
[326911872,1715563844764,-3097.42,0.00012979,2]
[326911873,1715563844774,-3097.42,0.00012979,2]
[326911874,1715563844784,-3097.42,0.00012979,2]
[326911875,1715563844794,-3097.42,0.00012979,2]
[326911876,1715563844804,-3097.42,0.00012979,2]
[326911877,1715563844814,-3097.42,0.00012979,2]
[326911878,1715563844824,-3097.42,0.00012979,2]
[326911879,1715563844833,-3097.42,0.00012979,2]
[326911880,1715563844842,-3097.58980641,0.00012979,2]
[326911881,1715563844852,-4860.6039607,0.00012979,2]
[326911882,1715563844862,-237273.25388223,0.0001298,2]
[326911883,1715563844871,-1973339.45163038,0.0001298,2]
[326911884,1715563844927,-646.38980015,0.0001298,2]
[326911885,1715563844939,-662.38136993,0.0001298,2]
[326911886,1715563844951,-335.5461383,0.0001298,2]
[326911887,1715563844962,-1838.75385252,0.0001298,2]
[326911888,1715563844974,-22908.31069795,0.0001298,2]
[326911889,1715563844986,-340.01010888,0.0001298,2]
[326911890,1715563846248,-500.0,0.00012096,2]
[326911891,1715563846258,-126.08111507,0.00012876,2]
[326911892,1715563846270,-489.903344,0.00012876,2]
[326911893,1715563846281,-669.79480059,0.0001297,2]
[326911894,1715563846292,-175419.63949795,0.0001298,2]
[326911895,1715563846303,-817.673287,0.0001298,2]
[326911896,1715563846314,-1309.99765462,0.0001298,2]
[326911897,1715563846511,-6231.59735195,0.0001288,2]
[326911898,1715563846523,-2203.44980342,0.0001288,2]
[326911899,1715563846534,-20328.40188352,0.0001288,2]
[326911900,1715563846544,-620.0,0.00012976,2]
[326911901,1715563846553,-6824.61018734,0.0001298,2]
[326911910,1715564161540,1000.0,0.00025,120]
[326911911,1715564161898,1000.0,0.00025,120]
[326911912,1715564163229,1000.0,0.00025,120]
[326911913,1715564186823,504.98430153,0.00025,120]
[326911925,1715565032784,-258.76851609,0.00010595,2]
[326911933,1715565032952,-5822.67663377,0.00010595,2]
[326911934,1715565032966,-13400.11209097,0.00010595,2]
[326911935,1715565032976,-656.01389756,0.00010596,2]
[326911936,1715565032985,-1076.34,0.00010814,2]
[326911937,1715565032994,-826.85332303,0.00010853,2]
[326911938,1715565033003,-500.0,0.00010869,2]
[326911939,1715565033013,-167.75,0.00010894,2]
[326911940,1715565033022,-162.43,0.00010932,3]
[326911941,1715565033036,-250.0,0.00010953,2]
[326911942,1715565033045,-180.91,0.00010953,2]
[326911943,1715565033054,-150.0,0.00010959,2]
[326911944,1715565033063,-1000.0,0.0001104,2]
[326911945,1715565033073,-192.94,0.0001111,2]
[326911946,1715565033082,-8012.693367,0.0001152,2]
[326911947,1715565033091,-192.2336,0.00011754,2]
[326911948,1715565033101,-938.091,0.00011754,2]
[326911949,1715565033110,-1000.0,0.00011754,2]
[326911950,1715565033121,-312.83213403,0.00011845,2]
[326911951,1715565033131,-1000.0,0.00011853,2]
[326911952,1715565033139,-657.30058741,0.00011854,2]
[326911953,1715565033176,-342.69941259,0.00011854,2]
[326911954,1715565033186,-651.97741859,0.00011854,2]
[326911955,1715565033197,-338.70707334,0.00011854,2]
[326911957,1715565038077,-742.375856,0.00011794,2]
[326911961,1715565038087,-1313.20222009,0.00011854,2]
[326911963,1715565038099,-150586.05451077,0.00011854,2]
[326911967,1715565038110,-92110.05877721,0.00011854,2]
[326911969,1715565038121,-100000.0,0.00011854,2]
[326911971,1715565038130,-500.0,0.00011876,2]
[326911973,1715565038139,-500.0,0.00011885,2]
[326911974,1715565038148,-500.0,0.00011894,2]
[326911975,1715565038158,-200.0,0.000119,4]
[326911976,1715565038167,-500.0,0.00011903,2]
[326911977,1715565038177,-500.0,0.00011912,2]
[326911978,1715565038187,-500.0,0.0001192,2]
[326911979,1715565038196,-500.0,0.00011929,2]
[326911980,1715565038206,-500.0,0.00011938,2]
[326911981,1715565038216,-800.0,0.00011945,2]
[326911982,1715565038226,-800.0,0.00011945,2]
[326911983,1715565038235,-500.0,0.00011947,2]
[326911984,1715565038244,-500.0,0.00011956,2]
[326911985,1715565038253,-500.0,0.00011964,2]
[326911986,1715565038262,-500.0,0.00011973,2]
[326911987,1715565038273,-500.0,0.0001198,2]
[326911988,1715565038282,-500.0,0.0001198,2]
[326911989,1715565038291,-500.0,0.0001198,2]
[326911990,1715565038301,-500.0,0.0001198,2]
[326911991,1715565038309,-500.0,0.0001198,2]
[326911992,1715565038319,-500.0,0.0001198,2]
[326911993,1715565038327,-507.01,0.0001198,2]
[326911994,1715565038337,-500.0,0.0001198,2]
[326911995,1715565038346,-500.0,0.0001198,2]
[326911996,1715565038356,-500.0,0.0001198,2]
[326911997,1715565038366,-500.0,0.0001198,2]
[326911998,1715565038375,-500.0,0.0001198,2]
[326911999,1715565038385,-500.0,0.0001198,2]
[326912000,1715565038396,-500.0,0.0001198,2]
[326912001,1715565038405,-500.0,0.0001198,2]
[326912002,1715565038414,-500.0,0.0001198,2]
[326912003,1715565038423,-500.0,0.0001198,2]
[326912004,1715565038432,-500.0,0.0001198,2]
[326912005,1715565038441,-500.0,0.0001198,2]
[326912006,1715565038450,-500.0,0.0001198,2]
[326912007,1715565038459,-500.0,0.0001198,2]
[326912009,1715565038469,-500.0,0.0001198,2]
[326912012,1715565038478,-500.0,0.0001198,2]
[326912015,1715565038488,-500.0,0.0001198,2]
[326912017,1715565038497,-500.0,0.0001198,2]
[326912020,1715565038506,-500.0,0.0001198,2]
[326912023,1715565038515,-500.0,0.0001198,2]
[326912026,1715565038524,-500.0,0.0001198,2]
[326912029,1715565038533,-500.0,0.0001198,2]
[326912032,1715565038542,-500.0,0.0001198,2]
[326912035,1715565038551,-500.0,0.0001198,2]
[326912038,1715565038561,-500.0,0.0001198,2]
[326912040,1715565038569,-500.0,0.0001198,2]
[326912042,1715565038579,-500.0,0.0001198,2]
[326912043,1715565038588,-500.0,0.0001198,2]
[326912044,1715565038597,-500.0,0.0001198,2]
[326912045,1715565038606,-500.0,0.0001198,2]
[326912046,1715565038615,-500.0,0.0001198,2]
[326912047,1715565038624,-500.0,0.0001198,2]
[326912048,1715565038634,-500.0,0.0001198,2]
[326912049,1715565038643,-500.0,0.0001198,2]
[326912050,1715565038652,-500.0,0.0001198,2]
[326912051,1715565038661,-500.0,0.0001198,2]
[326912052,1715565038670,-500.0,0.0001198,2]
[326912053,1715565038680,-500.0,0.0001198,2]
[326912054,1715565038689,-500.0,0.0001198,2]
[326912055,1715565038698,-500.0,0.0001198,2]
[326912056,1715565038708,-500.0,0.0001198,2]
[326912057,1715565038720,-500.0,0.0001198,2]
[326912058,1715565038729,-478.57,0.0001198,2]
[326912059,1715565038739,-500.0,0.0001198,2]
[326912060,1715565038748,-500.0,0.0001198,2]
[326912061,1715565038758,-500.0,0.0001198,2]
[326912062,1715565038767,-500.0,0.0001198,2]
[326912063,1715565038777,-500.0,0.0001198,2]
[326912064,1715565038787,-500.0,0.0001198,2]
[326912065,1715565038797,-500.0,0.0001198,2]
[326912066,1715565038807,-500.0,0.0001198,2]
[326912067,1715565038816,-500.0,0.0001198,2]
[326912068,1715565038826,-500.0,0.0001198,2]
[326912069,1715565038835,-521.89,0.0001198,2]
[326912070,1715565038845,-500.0,0.0001198,2]
[326912071,1715565038856,-500.0,0.0001198,2]
[326912072,1715565038866,-500.0,0.00011982,2]
[326912073,1715565038876,-500.0,0.00011991,2]
[326912074,1715565038886,-500.0,0.00012,2]
[326912075,1715565038896,-19619.11365683,0.00012,2]
[326912076,1715565038905,-5000.0,0.00012,2]
[326912077,1715565038914,-877.92533283,0.00012,2]
[326912078,1715565038924,-449.91210201,0.00012,2]
[326912079,1715565038933,-500.0,0.00012,4]
[326912080,1715565038943,-500.0,0.00012008,2]
[326912081,1715565038952,-500.0,0.00012017,2]
[326912082,1715565038962,-500.0,0.00012026,2]
[326912083,1715565038976,-534.96,0.00012027,2]
[326912084,1715565038985,-172.02,0.00012033,2]
[326912085,1715565038995,-500.0,0.00012035,2]
[326912086,1715565039004,-500.0,0.00012044,2]
[326912087,1715565039014,-500.0,0.00012052,2]
[326912088,1715565039023,-500.0,0.00012061,2]
[326912089,1715565039035,-500.0,0.0001207,2]
[326912090,1715565039046,-500.0,0.00012079,2]
[326912091,1715565039057,-500.0,0.00012088,2]
[326912092,1715565039067,-800.0,0.000121,4]
[326912093,1715565039079,-312.83213399,0.00012104,2]
[326912094,1715565039089,-1940.460132,0.00012157,2]
[326912095,1715565039101,-151.4,0.00012164,2]
[326912096,1715565039113,-874.29555818,0.0001217,2]
[326912097,1715565039123,-1000.0,0.0001217,2]
[326912098,1715565039134,-1100.0,0.000122,4]
[326912099,1715565039144,-811.22259217,0.00012212,2]
[326912100,1715565039155,-50961.70926588,0.0001228,2]
[326912101,1715565039348,-608.16,0.0001228,2]
[326912102,1715565039360,-6140.75092786,0.0001228,2]
[326912103,1715565039372,-1298.10070513,0.0001228,2]
[326912104,1715565039404,-205111.36436316,0.0001228,2]
[326912105,1715565039413,-1400.0,0.000123,4]
[326912106,1715565039423,-1940.460132,0.00012309,2]
[326912107,1715565039432,-312.83213399,0.00012363,2]
[326912108,1715565039443,-200.0,0.000124,4]
[326912109,1715565039452,-1000.0,0.00012416,2]
[326912110,1715565039461,-1000.0,0.0001242,2]
[326912111,1715565039473,-1940.460132,0.00012461,2]
[326912112,1715565039483,-192.94,0.00012499,2]
[326912113,1715565039492,-200.0,0.000125,4]
[326912114,1715565039502,-811.22259216,0.00012542,2]
[326912115,1715565039512,-7500.0,0.00012566,2]
[326912116,1715565039521,-1000.0,0.00012574,2]
[326912117,1715565039530,-200.0,0.000126,4]
[326912118,1715565039539,-5006.0,0.00012603,2]
[326912119,1715565039548,-1940.460132,0.00012613,2]
[326912120,1715565039558,-312.83213399,0.00012621,2]
[326912121,1715565039567,-800.0,0.0001263,2]
[326912122,1715565039577,-800.0,0.0001263,2]
[326912123,1715565039587,-3624.116,0.00012645,2]
[326912124,1715565039596,-2106.83,0.00012659,2]
[326912125,1715565039606,-1410.761,0.00012666,2]
[326912126,1715565039615,-2163.521,0.00012666,2]
[326912127,1715565039625,-974.284,0.00012666,2]
[326912128,1715565039634,-1261.0,0.00012666,2]
[326912129,1715565039645,-1226.0,0.00012666,2]
[326912130,1715565039654,-1790.0,0.00012666,2]
[326912131,1715565039663,-544.733,0.00012666,2]
[326912132,1715565039673,-439.811,0.00012666,2]
[326912133,1715565039683,-164.0,0.00012666,2]
[326912134,1715565039693,-814.015,0.00012666,2]
[326912135,1715565039703,-422.0,0.00012666,2]
[326912136,1715565039713,-612.55,0.00012666,2]
[326912137,1715565039724,-1649.748,0.00012666,2]
[326912138,1715565039734,-151.446,0.00012666,2]
[326912139,1715565039744,-151.788,0.00012666,2]
[326912140,1715565039754,-2511.868,0.00012666,2]
[326912141,1715565039764,-216.0,0.00012666,2]
[326912142,1715565039775,-1142.434,0.00012666,2]
[326912143,1715565039785,-3164.597,0.00012666,2]
[326912144,1715565039795,-445.237,0.00012666,2]
[326912145,1715565039805,-5763.391,0.00012666,2]
[326912146,1715565039815,-150.0,0.00012666,2]
[326912147,1715565039826,-288.0,0.00012666,2]
[326912148,1715565039836,-1463.0,0.00012666,2]
[326912149,1715565039846,-5911.0,0.00012666,2]
[326912150,1715565039857,-37836.0,0.00012666,2]
[326912151,1715565039867,-1027.0,0.000127,2]
[326912152,1715565039878,-200.0,0.000127,4]
[326912153,1715565039888,-1049.26258526,0.0001272,2]
[326912154,1715565039897,-150.0,0.00012733,2]
[326912155,1715565039908,-300.0,0.00012762,2]
[326912157,1715565039918,-1940.460132,0.00012765,2]
[326912159,1715565039928,-151.48432784,0.00012772,2]
[326912161,1715565039938,-182.3864185,0.00012777,2]
[326912163,1715565039947,-180.91,0.00012778,2]
[326912165,1715565039958,-172.05401517,0.0001278,2]
[326912167,1715565039971,-150.0,0.00012781,2]
[326912169,1715565039981,-10657.07328676,0.000128,2]
[326912171,1715565039991,-1000.0,0.000128,2]
[326912173,1715565040002,-1038.0,0.000128,4]
[326912175,1715565040013,-150.0,0.00012803,2]
[326912177,1715565040023,-3503.7619161,0.00012824,2]
[326912179,1715565040035,-150.0,0.00012827,2]
[326912181,1715565040048,-150.0,0.00012827,2]
[326912183,1715565040058,-1500.0,0.0001283,2]
[326912185,1715565040068,-150.0,0.00012837,2]
[326912187,1715565040078,-1500.0,0.00012846,2]
[326912189,1715565040087,-10922.19280687,0.00012848,2]
[326912191,1715565040098,-561.42066099,0.0001285,2]
[326912193,1715565040108,-12646.59177514,0.0001285,2]
[326912195,1715565040118,-1517.53399669,0.00012859,2]
[326912197,1715565040130,-3599.6,0.0001286,2]
[326912199,1715565040140,-57838.69335921,0.0001286,2]
[326912201,1715565040150,-150.0,0.00012866,2]
[326912203,1715565040160,-150.0,0.00012867,2]
[326912205,1715565040170,-7466.54801402,0.00012869,2]
[326912207,1715565040179,-811.22259216,0.00012871,2]
[326912209,1715565040189,-7466.54801391,0.00012872,2]
[326912211,1715565040200,-7466.54801391,0.00012875,2]
[326912213,1715565040210,-500.0,0.00012875,2]
[326912215,1715565040225,-432.78075211,0.00012876,2]
[326912217,1715565040235,-500.0,0.00012876,2]
[326912219,1715565040245,-605.52747093,0.00012876,2]
[326912222,1715565040255,-365.38857296,0.00012876,2]
[326912224,1715565040266,-500.0,0.00012876,2]
[326912226,1715565040275,-500.0,0.00012876,2]
[326912228,1715565040285,-500.0,0.00012876,2]
[326912229,1715565040295,-152.18674414,0.00012876,2]
[326912231,1715565040304,-500.0,0.00012876,2]
[326912234,1715565040315,-312.89719902,0.00012876,2]
[326912236,1715565040324,-500.0,0.00012876,2]
[326912237,1715565040334,-500.0,0.00012876,2]
[326912238,1715565040343,-500.0,0.00012876,2]
[326912239,1715565040353,-381.40202915,0.00012876,2]
[326912240,1715565040362,-500.0,0.00012876,2]
[326912241,1715565040372,-559.76794089,0.00012876,2]
[326912243,1715565040381,-325.19396615,0.00012876,2]
[326912245,1715565040391,-161.63409813,0.00012876,2]
[326912247,1715565040402,-167.63831766,0.00012876,2]
[326912249,1715565040413,-316.10292507,0.00012876,2]
[326912252,1715565040423,-340.7857636,0.00012876,2]
[326912253,1715565040433,-252.44999093,0.00012876,2]
[326912254,1715565040443,-325.03701064,0.00012876,2]
[326912255,1715565040452,-197.6961446,0.00012876,2]
[326912256,1715565040462,-186.63456868,0.00012876,2]
[326912257,1715565040474,-221.88134689,0.00012876,2]
[326912258,1715565040483,-500.0,0.00012876,2]
[326912259,1715565040492,-500.0,0.00012876,2]
[326912260,1715565040502,-398.85824463,0.00012876,2]
[326912261,1715565040512,-397.60400562,0.00012876,2]
[326912262,1715565040521,-172.28116145,0.00012876,2]
[326912263,1715565040530,-301.62969075,0.00012876,2]
[326912264,1715565040540,-456.93443571,0.00012876,2]
[326912265,1715565040549,-199.2134489,0.00012876,2]
[326912266,1715565040559,-165.49608365,0.00012876,2]
[326912267,1715565040569,-235.61350173,0.00012876,2]
[326912268,1715565040578,-209.48093928,0.00012876,2]
[326912269,1715565040587,-500.0,0.00012876,2]
[326912270,1715565040597,-345.75345605,0.00012876,2]
[326912271,1715565040606,-299.90938836,0.00012876,2]
[326912272,1715565040616,-396.46639881,0.00012876,2]
[326912273,1715565040626,-231.10212527,0.00012876,2]
[326912274,1715565040635,-1000.0,0.00012876,2]
[326912275,1715565040646,-200.0,0.00012876,2]
[326912276,1715565040655,-500.0,0.00012876,2]